fUST/lending_fUST_20250630
["ID","MTS","AMOUNT","RATE_DAILY","PERIOD"]
[368610334,1751235044915,-182.3598853,0.00019699,2]
[368610335,1751235044924,-25000.0,0.00019699,2]
[368610336,1751235044933,-153.213618,0.00019701,2]
[368610337,1751235044942,-151.0,0.00019701,2]
[368610338,1751235044952,-501.72407384,0.00019723,2]
[368610339,1751235044961,-460.0,0.00019725,2]
[368610340,1751235044971,-151.0,0.00019725,2]
[368610341,1751235044981,-151.0,0.00019725,2]
[368610342,1751235044991,-151.0,0.00019725,2]
[368610343,1751235045000,-151.0,0.00019725,2]
[368610344,1751235045010,-151.0,0.00019725,2]
[368610345,1751235045019,-151.0,0.00019725,2]
[368610346,1751235045028,-286.057714,0.00019725,2]
[368610347,1751235045038,-151.0,0.00019725,2]
[368610348,1751235045047,-151.0,0.00019725,2]
[368610349,1751235045056,-151.0,0.00019725,2]
[368610350,1751235045065,-1928.085873,0.00019725,2]
[368610351,1751235045075,-1928.085873,0.00019725,2]
[368610352,1751235045084,-262.226419,0.00019725,2]
[368610353,1751235045093,-262.226419,0.00019725,2]
[368610354,1751235045103,-1562.25,0.00019725,2]
[368610355,1751235045112,-460.0,0.00019725,2]
[368610356,1751235045121,-374.534851,0.00019725,2]
[368610357,1751235045131,-1232.26,0.00019725,2]
[368610358,1751235045140,-374.534851,0.00019725,2]
[368610359,1751235045149,-3609.43,0.00019725,2]
[368610360,1751235045158,-1161.31,0.00019725,2]
[368610361,1751235045168,-1011.5142067,0.00019734,2]
[368610362,1751235045177,-1000.0,0.00019734,2]
[368610363,1751235045187,-1000.0,0.00019734,2]
[368610364,1751235045196,-1000.0,0.00019734,2]
[368610365,1751235045205,-1000.0,0.00019734,2]
[368610366,1751235045215,-716.195754,0.00019754,2]
[368610367,1751235045224,-732.471124,0.00019765,2]
[368610368,1751235045233,-1000.0,0.00019773,2]
[368610369,1751235045242,-1000.0,0.00019773,2]
[368610370,1751235045251,-1000.0,0.00019793,2]
[368610371,1751235045261,-1000.0,0.00019793,2]
[368610372,1751235045270,-1031.97906164,0.00019793,2]
[368610373,1751235045280,-1000.0,0.00019793,2]
[368610374,1751235045290,-1000.0,0.00019793,2]
[368610375,1751235045299,-1000.0,0.00019793,2]
[368610376,1751235045309,-504.28252098,0.00019793,2]
[368610377,1751235045318,-500.90268572,0.00019793,2]
[368610378,1751235045327,-428.52617537,0.00019793,2]
[368610379,1751235045336,-430.50900453,0.00019793,2]
[368610380,1751235045346,-742.6949969,0.00019809,2]
[368610381,1751235045355,-1000.0,0.00019826,2]
[368610382,1751235045364,-500.0,0.00019826,2]
[368610383,1751235045375,-586.29415614,0.00019826,2]
[368610384,1751235045384,-500.0,0.00019829,2]
[368610385,1751235045394,-1000.0,0.00019852,2]
[368610386,1751235045403,-1000.0,0.00019852,2]
[368610387,1751235045413,-782.17122709,0.00019864,2]
[368610388,1751235045422,-4168.82108989,0.000199,2]
[368610389,1751235045431,-267.06231988,0.00019951,2]
[368610390,1751235045440,-500.0,0.00019951,2]
[368610391,1751235045450,-460.0,0.00019966,2]
[368610392,1751235045459,-460.0,0.00019966,2]
[368610393,1751235045469,-1457.24,0.00019966,2]
[368610394,1751235045478,-2032.3,0.00019967,2]
[368610395,1751235045487,-1565.73,0.00019967,2]
[368610396,1751235045496,-2450.2,0.00019967,2]
[368610397,1751235045505,-1188.68,0.00019967,2]
[368610398,1751235045515,-460.0,0.00019967,2]
[368610399,1751235045523,-460.76,0.00019967,2]
[368610400,1751235045533,-460.0,0.00019967,2]
[368610401,1751235045542,-460.0,0.00019967,2]
[368610402,1751235045551,-460.0,0.00019967,2]
[368610403,1751235045560,-612.49,0.00019967,2]
[368610404,1751235045570,-2357.05,0.00019967,2]
[368610405,1751235045579,-2202.17,0.00019967,2]
[368610406,1751235045589,-460.0,0.00019967,2]
[368610407,1751235045598,-656.98,0.00019967,2]
[368610408,1751235045608,-2553.27,0.00019967,2]
[368610409,1751235045617,-460.0,0.00019967,2]
[368610410,1751235045628,-460.0,0.00019967,2]
[368610411,1751235045638,-1017.95,0.00019967,2]
[368610412,1751235045647,-1117.64,0.00019967,2]
[368610413,1751235045766,-827.33,0.00019967,2]
[368610414,1751235045792,-460.0,0.00019967,2]
[368610415,1751235045803,-460.0,0.00019967,2]
[368610416,1751235045812,-1073.37,0.00019967,2]
[368610417,1751235045822,-763.09,0.00019967,2]
[368610418,1751235045831,-460.0,0.00019968,2]
[368610419,1751235045841,-460.0,0.00019968,2]
[368610420,1751235045850,-467.07,0.00019968,2]
[368610421,1751235045859,-609.95,0.00019968,2]
[368610422,1751235045869,-603.18,0.00019968,2]
[368610423,1751235045881,-460.0,0.00019968,2]
[368610424,1751235045892,-489.51,0.00019968,2]
[368610425,1751235045901,-460.0,0.00019968,2]
[368610426,1751235045911,-460.0,0.00019968,2]
[368610427,1751235045922,-460.0,0.00019968,2]
[368610428,1751235045932,-2884.44,0.00019968,2]
[368610429,1751235045942,-480.57,0.00019968,2]
[368610430,1751235045952,-950.73,0.00019968,2]
[368610431,1751235045962,-460.0,0.00019968,2]
[368610432,1751235045972,-462.1,0.00019968,2]
[368610433,1751235045982,-610.49,0.00019968,2]
[368610434,1751235045994,-954.77,0.00019968,2]
[368610435,1751235046005,-503.3,0.00019969,2]
[368610436,1751235046015,-460.0,0.0001997,2]
[368610437,1751235046025,-420.0,0.00019984,2]
[368610438,1751235046036,-460.0,0.00019999,2]
[368610439,1751235046046,-1562.25,0.00019999,2]
[368610440,1751235046056,-460.0,0.00019999,2]
[368610441,1751235046066,-1232.26,0.00019999,2]
[368610442,1751235046076,-3609.43,0.00019999,2]
[368610443,1751235046087,-1161.31,0.00019999,2]
[368610444,1751235046098,-300.0,0.0002,2]
[368610445,1751235046108,-1998.95653615,0.00020043,2]
[368610446,1751235046117,-4168.82108962,0.00020072,2]
[368610447,1751235046134,-151.0,0.00020144,2]
[368610448,1751235046144,-151.0,0.00020144,2]
[368610449,1751235046153,-185.748531,0.00020144,2]
[368610450,1751235046163,-185.748531,0.00020144,2]
[368610451,1751235046173,-151.0,0.00020144,2]
[368610452,1751235046183,-151.0,0.00020144,2]
[368610453,1751235046193,-456.652963,0.00020144,2]
[368610454,1751235046203,-456.652963,0.00020144,2]
[368610455,1751235046213,-151.0,0.00020144,2]
[368610456,1751235046222,-255.618464,0.00020144,2]
[368610457,1751235046231,-255.618464,0.00020144,2]
[368610458,1751235046241,-160.0,0.00020144,3]
[368610459,1751235046250,-847.31290578,0.00020144,3]
[368610460,1751235046259,-160.0,0.00020144,3]
[368610461,1751235046268,-12567.05932091,0.00020144,3]
[368610462,1751235046277,-213.82031328,0.00020144,3]
[368610463,1751235046287,-160.0,0.0002015,3]
[368610464,1751235046296,-624.67088142,0.00020185,2]
[368610465,1751235046306,-361.934243,0.00020187,2]
[368610466,1751235046315,-151.0,0.000202,4]
[368610467,1751235046324,-460.0,0.0002024,2]
[368610468,1751235046334,-460.0,0.0002024,2]
[368610469,1751235046343,-1457.24,0.0002024,2]
[368610470,1751235046352,-2032.3,0.00020241,2]
[368610471,1751235046361,-1565.73,0.00020241,2]
[368610472,1751235046371,-151.0,0.00020241,2]
[368610473,1751235046382,-2450.2,0.00020241,2]
[368610474,1751235046392,-1188.68,0.00020241,2]
[368610475,1751235046401,-460.0,0.00020241,2]
[368610476,1751235046410,-460.76,0.00020241,2]
[368610477,1751235046420,-460.0,0.00020241,2]
[368610478,1751235046430,-460.0,0.00020241,2]
[368610479,1751235046439,-460.0,0.00020241,2]
[368610480,1751235046449,-612.49,0.00020241,2]
[368610481,1751235046458,-2357.05,0.00020241,2]
[368610482,1751235046467,-460.0,0.00020241,2]
[368610483,1751235046476,-2202.17,0.00020241,2]
[368610484,1751235046486,-192.117555,0.00020241,2]
[368610485,1751235046495,-192.117555,0.00020241,2]
[368610486,1751235046505,-656.98,0.00020241,2]
[368610487,1751235046514,-2553.27,0.00020241,2]
[368610488,1751235046523,-460.0,0.00020241,2]
[368610489,1751235046532,-460.0,0.00020241,2]
[368610490,1751235046541,-1017.95,0.00020241,2]
[368610491,1751235046551,-1117.64,0.00020241,2]
[368610492,1751235046560,-827.33,0.00020241,2]
[368610493,1751235046569,-460.0,0.00020241,2]
[368610494,1751235046579,-460.0,0.00020241,2]
[368610495,1751235046588,-1073.37,0.00020241,2]
[368610496,1751235046597,-460.0,0.00020242,2]
[368610497,1751235046606,-151.0,0.00020242,2]
[368610498,1751235046616,-460.0,0.00020242,2]
[368610499,1751235046628,-467.07,0.00020242,2]
[368610500,1751235046637,-609.95,0.00020242,2]
[368610501,1751235046647,-603.18,0.00020242,2]
[368610502,1751235046656,-460.0,0.00020242,2]
[368610503,1751235046666,-489.51,0.00020242,2]
[368610504,1751235046675,-460.0,0.00020242,2]
[368610505,1751235046684,-460.0,0.00020242,2]
[368610506,1751235046694,-460.0,0.00020242,2]
[368610507,1751235046703,-2884.44,0.00020242,2]
[368610508,1751235046713,-950.73,0.00020242,2]
[368610509,1751235046722,-460.0,0.00020242,2]
[368610510,1751235046731,-462.1,0.00020242,2]
[368610511,1751235046740,-610.49,0.00020242,2]
[368610512,1751235046750,-954.77,0.00020242,2]
[368610513,1751235046761,-151.0,0.00020243,2]
[368610514,1751235046770,-503.3,0.00020243,2]
[368610515,1751235046779,-1928.085873,0.00020243,2]
[368610516,1751235046788,-1928.085873,0.00020243,2]
[368610517,1751235046799,-151.0,0.00020244,2]
[368610518,1751235046808,-460.0,0.00020244,2]
[368610519,1751235046817,-151.0,0.00020244,2]
[368610520,1751235046827,-151.0,0.00020244,2]
[368610521,1751235046836,-151.0,0.00020244,2]
[368610522,1751235046846,-151.0,0.00020244,2]
[368610523,1751235046855,-151.0,0.00020244,2]
[368610524,1751235046864,-151.0,0.00020244,2]
[368610525,1751235046877,-151.0,0.00020244,2]
[368610526,1751235046887,-262.226419,0.00020244,2]
[368610527,1751235046897,-262.226419,0.00020244,2]
[368610528,1751235046906,-374.534851,0.00020244,2]
[368610529,1751235046916,-374.534851,0.00020244,2]
[368610530,1751235046925,-4168.82108962,0.00020245,2]
[368610531,1751235046934,-151.0,0.00020246,2]
[368610532,1751235046943,-151.0,0.00020246,2]
[368610533,1751235046952,-5000.0,0.00020247,2]
[368610534,1751235046962,-500.0,0.0002026,2]
[368610535,1751235046972,-1562.25,0.00020273,2]
[368610536,1751235046981,-460.0,0.00020273,2]
[368610537,1751235046990,-1232.26,0.00020273,2]
[368610538,1751235047000,-3609.43,0.00020273,2]
[368610539,1751235047009,-1161.31,0.00020273,2]
[368610540,1751235047018,-500.0,0.00020279,2]
[368610541,1751235047027,-500.0,0.00020279,2]
[368610542,1751235047037,-206.08708153,0.00020279,2]
[368610543,1751235047046,-500.0,0.00020279,2]
[368610544,1751235047056,-390.28926115,0.00020279,2]
[368610545,1751235047065,-500.0,0.00020279,2]
[368610546,1751235047075,-257.76110712,0.00020279,2]
[368610547,1751235047085,-500.0,0.00020279,2]
[368610548,1751235047094,-500.0,0.00020279,2]
[368610549,1751235047105,-233.66999472,0.00020279,2]
[368610550,1751235047114,-500.0,0.00020279,2]
[368610551,1751235047123,-500.0,0.00020279,2]
[368610552,1751235047133,-500.0,0.00020279,2]
[368610553,1751235047143,-500.0,0.00020279,2]
[368610554,1751235047153,-338.86733271,0.00020279,2]
[368610555,1751235047163,-500.0,0.00020279,2]
[368610556,1751235047172,-500.0,0.00020279,2]
[368610557,1751235047181,-500.0,0.00020279,2]
[368610558,1751235047191,-433.44947086,0.00020279,2]
[368610559,1751235047201,-500.0,0.00020279,2]
[368610560,1751235047210,-500.0,0.00020279,2]
[368610561,1751235047220,-276.8189115,0.00020279,2]
[368610562,1751235047229,-500.0,0.00020279,2]
[368610563,1751235047238,-500.0,0.00020279,2]
[368610564,1751235047248,-500.0,0.00020279,2]
[368610565,1751235047258,-500.0,0.00020279,2]
[368610566,1751235047268,-482.63587906,0.00020279,2]
[368610567,1751235047277,-500.0,0.00020279,2]
[368610568,1751235047287,-500.0,0.00020279,2]
[368610569,1751235047296,-500.0,0.00020279,2]
[368610570,1751235047305,-500.0,0.00020279,2]
[368610571,1751235047315,-372.97801137,0.00020279,2]
[368610572,1751235047324,-500.0,0.00020279,2]
[368610573,1751235047333,-500.0,0.00020279,2]
[368610574,1751235047342,-500.0,0.00020279,2]
[368610575,1751235047352,-500.0,0.00020279,2]
[368610576,1751235047361,-500.0,0.00020279,2]
[368610577,1751235047371,-500.0,0.00020279,2]
[368610578,1751235047381,-500.0,0.00020279,2]
[368610579,1751235047391,-500.0,0.00020279,2]
[368610580,1751235047400,-500.0,0.00020279,2]
[368610581,1751235047409,-500.0,0.00020279,2]
[368610582,1751235047419,-500.0,0.00020279,2]
[368610583,1751235047428,-500.0,0.00020279,2]
[368610584,1751235047437,-500.0,0.00020279,2]
[368610585,1751235047447,-500.0,0.00020279,2]
[368610586,1751235047456,-500.0,0.00020279,2]
[368610587,1751235047465,-500.0,0.00020279,2]
[368610588,1751235047474,-500.0,0.00020279,2]
[368610589,1751235047483,-500.0,0.00020279,2]
[368610590,1751235047493,-500.0,0.00020279,2]
[368610591,1751235047502,-500.0,0.00020279,2]
[368610592,1751235047511,-500.0,0.00020279,2]
[368610593,1751235047521,-500.0,0.00020279,2]
[368610594,1751235047530,-500.0,0.00020279,2]
[368610595,1751235047539,-500.0,0.00020279,2]
[368610596,1751235047548,-500.0,0.00020279,2]
[368610597,1751235047558,-500.0,0.00020279,2]
[368610598,1751235047567,-500.0,0.00020279,2]
[368610599,1751235047576,-500.0,0.00020279,2]
[368610600,1751235047586,-500.0,0.00020279,2]
[368610601,1751235047595,-500.0,0.00020279,2]
[368610602,1751235047605,-500.0,0.00020279,2]
[368610603,1751235047614,-500.0,0.00020279,2]
[368610604,1751235047625,-500.0,0.00020279,2]
[368610605,1751235047634,-500.0,0.00020279,2]
[368610606,1751235047644,-500.0,0.00020279,2]
[368610607,1751235047653,-500.0,0.00020279,2]
[368610608,1751235047661,-500.0,0.00020279,2]
[368610609,1751235047671,-500.0,0.00020279,2]
[368610610,1751235047680,-500.0,0.00020279,2]
[368610611,1751235047690,-344.82539495,0.00020279,2]
[368610612,1751235047699,-500.0,0.00020279,2]
[368610613,1751235047709,-500.0,0.00020279,2]
[368610614,1751235047718,-500.0,0.00020279,2]
[368610615,1751235047728,-500.0,0.00020279,2]
[368610616,1751235047737,-300.0,0.00020279,2]
[368610617,1751235047747,-500.0,0.00020279,2]
[368610618,1751235047756,-500.0,0.00020279,2]
[368610619,1751235047765,-500.0,0.00020279,2]
[368610620,1751235047775,-500.0,0.00020279,2]
[368610621,1751235047784,-500.0,0.00020279,2]
[368610622,1751235047794,-500.0,0.00020279,2]
[368610623,1751235047808,-151.0,0.00020282,2]
[368610624,1751235047818,-151.0,0.00020282,2]
[368610625,1751235047827,-1500.0,0.00020282,2]
[368610626,1751235047837,-1500.0,0.00020282,2]
[368610627,1751235047846,-500.0,0.00020282,2]
[368610628,1751235047856,-1000.0,0.00020282,2]
[368610629,1751235047865,-1000.0,0.000203,2]
[368610630,1751235047876,-1500.0,0.00020321,2]
[368610631,1751235047885,-1500.0,0.00020321,2]
[368610632,1751235047894,-208.1741641,0.00020329,2]
[368610633,1751235047904,-500.0,0.00020341,2]
[368610634,1751235047913,-1500.0,0.00020341,2]
[368610635,1751235047923,-500.0,0.00020341,2]
[368610636,1751235047933,-500.0,0.00020341,2]
[368610637,1751235047943,-500.0,0.00020341,2]
[368610638,1751235047952,-160.0,0.00020368,4]
[368610639,1751235047962,-503.12234392,0.00020374,2]
[368610640,1751235047971,-1500.0,0.00020399,2]
[368610641,1751235047981,-500.0,0.00020399,2]
[368610642,1751235047990,-775.0,0.00020404,2]
[368610643,1751235048000,-4168.82108962,0.00020417,3]
[368610644,1751235048009,-160.0,0.0002042,3]
[368610645,1751235048018,-20793.34215388,0.00020489,2]
[368610646,1751235048028,-151.0,0.000205,4]
[368610647,1751235048038,-151.0,0.00020505,2]
[368610648,1751235048047,-151.0,0.00020505,2]
[368610649,1751235048058,-460.0,0.00020514,2]
[368610650,1751235048067,-460.0,0.00020514,2]
[368610651,1751235048077,-1457.24,0.00020514,2]
[368610652,1751235048087,-2032.3,0.00020515,2]
[368610653,1751235048096,-1565.73,0.00020515,2]
[368610654,1751235048106,-2450.2,0.00020515,2]
[368610655,1751235048115,-1188.68,0.00020515,2]
[368610656,1751235048126,-460.0,0.00020515,2]
[368610657,1751235048136,-460.76,0.00020515,2]
[368610658,1751235048146,-460.0,0.00020515,2]
[368610659,1751235048156,-460.0,0.00020515,2]
[368610660,1751235048166,-460.0,0.00020515,2]
[368610661,1751235048175,-612.49,0.00020515,2]
[368610662,1751235048185,-2357.05,0.00020515,2]
[368610663,1751235048195,-460.0,0.00020515,2]
[368610664,1751235048205,-2202.17,0.00020515,2]
[368610665,1751235048215,-656.98,0.00020515,2]
[368610666,1751235048224,-2553.27,0.00020515,2]
[368610667,1751235048234,-460.0,0.00020515,2]
[368610668,1751235048244,-460.0,0.00020515,2]
[368610669,1751235048253,-1017.95,0.00020515,2]
[368610670,1751235048263,-1117.64,0.00020515,2]
[368610671,1751235048273,-827.33,0.00020515,2]
[368610672,1751235048283,-460.0,0.00020515,2]
[368610673,1751235048292,-460.0,0.00020515,2]
[368610674,1751235048302,-1073.37,0.00020515,2]
[368610675,1751235048312,-460.0,0.00020516,2]
[368610676,1751235048321,-460.0,0.00020516,2]
[368610677,1751235048331,-467.07,0.00020516,2]
[368610678,1751235048341,-609.95,0.00020516,2]
[368610679,1751235048351,-603.18,0.00020516,2]
[368610680,1751235048361,-460.0,0.00020516,2]
[368610681,1751235048371,-489.51,0.00020516,2]
[368610682,1751235048382,-460.0,0.00020516,2]
[368610683,1751235048392,-460.0,0.00020516,2]
[368610684,1751235048401,-460.0,0.00020516,2]
[368610685,1751235048411,-2884.44,0.00020516,2]
[368610686,1751235048421,-950.73,0.00020516,2]
[368610687,1751235048430,-460.0,0.00020516,2]
[368610688,1751235048439,-462.1,0.00020516,2]
[368610689,1751235048448,-610.49,0.00020516,2]
[368610690,1751235048457,-954.77,0.00020516,2]
[368610691,1751235048467,-151.0,0.00020517,2]
[368610692,1751235048477,-151.0,0.00020517,2]
[368610693,1751235048486,-1701.693219,0.00020517,2]
[368610694,1751235048496,-1701.693219,0.00020517,2]
[368610695,1751235048507,-503.3,0.00020517,2]
[368610696,1751235048516,-151.0,0.00020517,2]
[368610697,1751235048525,-151.0,0.00020517,2]
[368610698,1751235048534,-151.0,0.00020517,2]
[368610699,1751235048544,-456.652963,0.00020517,2]
[368610700,1751235048670,-456.652963,0.00020517,2]
[368610701,1751235048680,-255.618464,0.00020517,2]
[368610702,1751235048691,-255.618464,0.00020517,2]
[368610703,1751235048700,-775.0,0.00020517,2]
[368610704,1751235048710,-151.0,0.00020518,2]
[368610705,1751235048719,-460.0,0.00020518,2]
[368610706,1751235048729,-185.748531,0.00020519,2]
[368610707,1751235048739,-185.748531,0.00020519,2]
[368610708,1751235048748,-151.0,0.00020519,2]
[368610709,1751235048758,-192.117555,0.00020519,2]
[368610710,1751235048767,-192.117555,0.00020519,2]
[368610711,1751235048776,-1562.25,0.00020547,2]
[368610712,1751235048786,-460.0,0.00020547,2]
[368610713,1751235048795,-1232.26,0.00020547,2]
[368610714,1751235048808,-3609.43,0.00020547,2]
[368610715,1751235048818,-1161.31,0.00020547,2]
[368610716,1751235048827,-151.0,0.00020548,2]
[368610717,1751235048837,-151.0,0.00020548,2]
[368610718,1751235048846,-244.81484,0.00020548,2]
[368610719,1751235048855,-176.815034,0.0002055,4]
[368610720,1751235048865,-1270.527,0.00020559,2]
[368610721,1751235048875,-1998.95653615,0.00020561,2]
[368610722,1751235048885,-1198.0,0.00020567,2]
[368610723,1751235048894,-23487.02308577,0.00020581,2]
[368610724,1751235048904,-4168.82108962,0.0002059,3]
[368610725,1751235048915,-5055.8,0.000206,2]
[368610726,1751235048925,-966.0,0.0002069,2]
[368610727,1751235048935,-2150.0,0.0002069,2]
[368610728,1751235048944,-646.0,0.0002069,2]
[368610729,1751235048954,-4168.82108962,0.00020762,3]
[368610730,1751235048964,-406.0,0.00020782,2]
[368610731,1751235048976,-422.825,0.00020782,2]
[368610732,1751235048986,-460.0,0.00020788,2]
[368610733,1751235048996,-460.0,0.00020788,2]
[368610734,1751235049006,-1457.24,0.00020788,2]
[368610735,1751235049016,-1928.085873,0.00020789,2]
[368610736,1751235049026,-1928.085873,0.00020789,2]
[368610737,1751235049036,-2032.3,0.00020789,2]
[368610738,1751235049046,-1565.73,0.00020789,2]
[368610739,1751235049056,-2450.2,0.00020789,2]
[368610740,1751235049065,-1188.68,0.00020789,2]
[368610741,1751235049075,-460.0,0.00020789,2]
[368610742,1751235049085,-460.76,0.00020789,2]
[368610743,1751235049095,-460.0,0.00020789,2]
[368610744,1751235049105,-460.0,0.00020789,2]
[368610745,1751235049115,-460.0,0.00020789,2]
[368610746,1751235049127,-612.49,0.00020789,2]
[368610747,1751235049137,-2357.05,0.00020789,2]
[368610748,1751235049147,-460.0,0.00020789,2]
[368610749,1751235049156,-2202.17,0.00020789,2]
[368610750,1751235049166,-656.98,0.00020789,2]
[368610751,1751235049176,-2553.27,0.00020789,2]
[368610752,1751235049185,-407.08824591,0.00020789,2]
[368610753,1751235049195,-460.0,0.00020789,2]
[368610754,1751235049204,-1017.95,0.00020789,2]
[368610755,1751235049214,-1117.64,0.00020789,2]
[368610756,1751235049223,-151.0,0.00020789,2]
[368610757,1751235049232,-827.33,0.00020789,2]
[368610758,1751235049242,-460.0,0.00020789,2]
[368610759,1751235049251,-460.0,0.00020789,2]
[368610760,1751235049261,-1073.37,0.00020789,2]
[368610761,1751235049270,-151.0,0.0002079,2]
[368610762,1751235049279,-151.0,0.0002079,2]
[368610763,1751235049288,-151.0,0.0002079,2]
[368610764,1751235049298,-167.93,0.0002079,2]
[368610765,1751235049307,-151.0,0.0002079,2]
[368610766,1751235049318,-151.0,0.0002079,2]
[368610767,1751235049328,-151.0,0.0002079,2]
[368610768,1751235049337,-151.0,0.0002079,2]
[368610769,1751235049347,-460.0,0.0002079,2]
[368610770,1751235049356,-467.07,0.0002079,2]
[368610771,1751235049365,-151.0,0.0002079,2]
[368610772,1751235049375,-151.0,0.0002079,2]
[368610773,1751235049385,-609.95,0.0002079,2]
[368610774,1751235049395,-603.18,0.0002079,2]
[368610775,1751235049403,-262.226419,0.0002079,2]
[368610776,1751235049413,-262.226419,0.0002079,2]
[368610777,1751235049422,-460.0,0.0002079,2]
[368610778,1751235049431,-489.51,0.0002079,2]
[368610779,1751235049440,-460.0,0.0002079,2]
[368610780,1751235049449,-460.0,0.0002079,2]
[368610781,1751235049459,-460.0,0.0002079,2]
[368610782,1751235049468,-2884.44,0.0002079,2]
[368610783,1751235049477,-374.534851,0.0002079,2]
[368610784,1751235049486,-374.534851,0.0002079,2]
[368610785,1751235049495,-950.73,0.0002079,2]
[368610786,1751235049504,-462.1,0.0002079,2]
[368610787,1751235049514,-610.49,0.0002079,2]
[368610788,1751235049524,-954.77,0.0002079,2]
[368610789,1751235049533,-151.0,0.00020791,2]
[368610790,1751235049542,-503.3,0.00020791,2]
[368610791,1751235049551,-460.0,0.00020792,2]
[368610792,1751235049560,-151.0,0.00020794,2]
[368610793,1751235049569,-5000.0,0.00020795,2]
[368610794,1751235049579,-1000.0,0.000208,2]
[368610795,1751235049588,-1562.25,0.00020821,2]
[368610796,1751235049597,-460.0,0.00020821,2]
[368610797,1751235049606,-1232.26,0.00020821,2]
[368610798,1751235049615,-3609.43,0.00020821,2]
[368610799,1751235049625,-1161.31,0.00020821,2]
[368610800,1751235049634,-2000.0,0.0002083,2]
[368610801,1751235049643,-2000.0,0.0002083,2]
[368610802,1751235049652,-624.67088142,0.00020838,2]
[368610803,1751235049661,-151.0,0.00020852,2]
[368610804,1751235049671,-500.0,0.00020852,2]
[368610805,1751235049680,-151.0,0.00020852,2]
[368610806,1751235049689,-151.0,0.00020852,2]
[368610807,1751235049698,-500.0,0.00020852,2]
[368610808,1751235049707,-151.0,0.00020852,2]
[368610809,1751235049716,-500.0,0.00020852,2]
[368610810,1751235049725,-151.0,0.00020852,2]
[368610811,1751235049734,-151.0,0.00020852,2]
[368610812,1751235049743,-272.65372998,0.00020852,2]
[368610813,1751235049752,-151.0,0.00020852,2]
[368610814,1751235049761,-206.90205378,0.00020852,2]
[368610815,1751235049770,-151.0,0.00020852,2]
[368610816,1751235049780,-500.0,0.00020852,2]
[368610817,1751235049790,-151.0,0.00020852,2]
[368610818,1751235049801,-151.0,0.00020852,2]
[368610819,1751235049810,-500.0,0.00020852,2]
[368610820,1751235049819,-500.0,0.00020852,2]
[368610821,1751235049828,-500.0,0.00020852,2]
[368610822,1751235049838,-151.0,0.00020852,2]
[368610823,1751235049848,-151.0,0.00020852,2]
[368610824,1751235049857,-151.0,0.00020852,2]
[368610825,1751235049867,-151.0,0.00020852,2]
[368610826,1751235049878,-151.0,0.00020852,2]
[368610827,1751235049887,-198.0,0.00020852,2]
[368610828,1751235049896,-500.0,0.00020852,2]
[368610829,1751235049906,-500.0,0.00020852,2]
[368610830,1751235049915,-151.0,0.00020852,2]
[368610831,1751235049924,-226.65963711,0.00020852,2]
[368610832,1751235049933,-271.88318969,0.00020852,2]
[368610833,1751235049943,-151.0,0.00020852,2]